bitfinex/quotes_ETHUSD_20230904
["timestamp","ask_amount","ask_price","bid_price","bid_amount"]
[1693840781378,22.31125481,1624.7,1624.6,2.90079936]
[1693840781900,0.84631481,1624.7,1624.6,8.31512501]
[1693840782098,0.84631481,1624.7,1624.6,6.70340994]
[1693840782257,6.15473,1624.8,1624.7,0.86483812]
[1693840782454,6.15473,1624.8,1624.7,2.47378608]
[1693840782783,12.30952,1624.8,1624.7,4.31371411]
[1693840782991,18.46431,1624.8,1624.7,3.76095877]
[1693840783755,18.46431,1624.8,1624.7,2.15201081]
[1693840784201,19.88831,1624.8,1624.7,2.15201081]
[1693840784501,19.88831,1624.8,1624.7,3.11777053]
[1693840785179,19.88831,1624.8,1624.7,2.15201081]
[1693840787887,19.88831,1624.8,1624.7,1.83110076]
[1693840788087,23.50281545,1624.8,1624.7,1.61047855]
[1693840788483,23.50281545,1624.8,1624.7,0.64421591]
[1693840789021,24.42594918,1624.8,1624.7,0.64421591]
[1693840789891,25.24524799,1624.8,1624.7,1.61047855]
[1693840790296,25.24524799,1624.8,1624.7,0.64421591]
[1693840790608,28.79226225,1624.8,1624.7,0.64421591]
[1693840790804,25.72524799,1624.8,1624.7,1.61047855]
[1693840791124,25.24524799,1624.8,1624.7,1.61047855]
[1693840791276,25.24524799,1624.8,1624.7,0.64421591]
[1693840791923,25.24524799,1624.8,1624.7,1.61047855]
[1693840792421,25.24524799,1624.8,1624.7,0.64421591]
[1693840793006,25.24524799,1624.8,1624.7,1.61047855]
[1693840793207,25.24524799,1624.8,1624.7,0.64421591]
[1693840793583,25.72524799,1624.8,1624.7,0.64421591]
[1693840794197,24.63074254,1624.8,1624.7,1.61047855]
[1693840794876,24.63074254,1624.8,1624.7,1.61161071]
[1693840795277,24.63074254,1624.8,1624.7,0.64534807]
[1693840795922,24.63074254,1624.8,1624.7,1.61161071]
[1693840796338,24.63074254,1624.8,1624.7,0.64534807]
[1693840797104,25.12986777,1624.8,1624.7,0.64534807]
[1693840798337,25.12986777,1624.8,1624.6,1.61161071]
[1693840798481,4.424,1624.7,1624.6,1.61161071]
[1693840798683,22.88894,1624.7,1624.6,1.61161071]
[1693840799235,25.352012,1624.7,1624.6,0.64534807]
[1693840799799,25.352012,1624.7,1624.5,1.61161071]
[1693840799999,1.424,1624.6,1624.5,0.64534807]
[1693840800198,19.89008,1624.6,1624.5,0.64534807]
[1693840800402,22.89008,1624.6,1624.5,0.64534807]
[1693840800734,22.89008,1624.6,1624.4,0.64534807]
[1693840800883,22.89122,1624.5,1624.4,0.64534807]
[1693840801334,24.31522,1624.5,1624.4,1.61161071]
[1693840801701,24.31522,1624.5,1624.4,0.64534807]
[1693840802839,24.31522,1624.5,1624.3,1.61161071]
[1693840803135,1.424,1624.4,1624.3,0.64534807]
[1693840803434,19.89233,1624.4,1624.3,0.64534807]
[1693840803815,19.89233,1624.4,1624.2,1.61161071]
[1693840804192,1.424,1624.3,1624.2,0.96626264]
[1693840804396,19.89347,1624.3,1624.2,0.96626264]
[1693840804735,20.7122213,1624.3,1624.2,0.64570962]
[1693840806020,0.8187513,1624.3,1624.2,1.61197226]
[1693840806220,0.8187513,1624.3,1624.2,0.96626264]
[1693840806434,0.8187513,1624.3,1624.2,4.41951523]
[1693840806639,15.31164,1624.5,1624.2,5.70668792]
[1693840806842,15.31164,1624.5,1624.3,0.64554927]
[1693840807347,15.31164,1624.5,1624.3,3.19324927]
[1693840808241,3.0,1624.5,1624.3,6.26026353]
[1693840808446,12.31107,1624.6,1624.4,1.27157562]
[1693840809241,12.31107,1624.6,1624.4,4.33858988]
[1693840809672,12.31107,1624.6,1624.4,1.27157562]
[1693840809967,18.46833,1624.4,1624.3,4.15951191]
[1693840810488,18.46833,1624.4,1624.3,3.19324927]
[1693840814474,18.46833,1624.4,1624.3,2.5477]
[1693840818953,6.15611,1624.4,1624.3,2.5477]
[1693840819155,6.15611,1624.4,1624.3,4.22487146]
[1693840819350,12.31222,1624.4,1624.3,4.22487146]
[1693840819678,6.15611,1624.4,1624.3,4.22487146]
[1693840819887,6.975696,1624.4,1624.3,4.22487146]
[1693840821073,0.819586,1624.4,1624.3,4.22487146]
[1693840821391,6.975696,1624.4,1624.3,4.22487146]
[1693840824582,0.819586,1624.4,1624.3,13.44837572]
[1693840824783,0.819586,1624.4,1624.3,20.57112836]
[1693840824987,0.819586,1624.4,1624.3,19.92557909]
[1693840825163,0.819586,1624.4,1624.3,20.57115999]
[1693840825368,0.819586,1624.4,1624.3,13.76908909]
[1693840827202,6.975696,1624.4,1624.3,7.61259909]
[1693840828397,6.975696,1624.4,1624.3,4.54558483]
[1693840828601,6.975696,1624.4,1624.3,3.51396264]
[1693840828602,13.131806,1624.4,1624.3,3.51396264]
[1693840830171,13.131806,1624.4,1624.3,4.15979108]
[1693840830437,13.131806,1624.4,1624.3,3.19352844]
[1693840831667,0.819586,1624.4,1624.3,12.7374669]
[1693840831874,0.819586,1624.4,1624.3,18.8939569]
[1693840832222,6.15576,1624.5,1624.3,18.8939569]
[1693840832516,12.31166,1624.5,1624.4,0.64585303]
[1693840832722,6.15576,1624.5,1624.4,0.64585303]
[1693840833985,12.31166,1624.5,1624.4,0.64585303]
[1693840834813,13.30502827,1624.5,1624.4,0.64585303]
[1693840835012,13.30502827,1624.5,1624.4,2.26370597]
[1693840835221,7.14912827,1624.5,1624.4,2.26370597]
[1693840837438,0.99336827,1624.5,1624.4,3.22996861]
[1693840838804,0.99336827,1624.5,1624.4,2.58411558]
[1693840838999,0.99336827,1624.5,1624.4,11.80723984]
[1693840839329,0.99336827,1624.5,1624.4,19.25052253]
[1693840839527,12.31029,1624.7,1624.4,19.25052253]
[1693840839698,6.1547,1624.8,1624.6,0.64571032]
[1693840839898,12.30951,1624.8,1624.6,0.64571032]
[1693840840253,12.30951,1624.8,1624.6,3.36991032]
[1693840841601,12.30951,1624.8,1624.6,6.43692458]
[1693840841835,12.30951,1624.8,1624.6,12.59225458]
[1693840842057,12.30951,1624.8,1624.7,1.25922546]
[1693840843342,6.1547,1624.8,1624.7,1.25922546]
[1693840843504,6.1546,1624.8,1624.7,7.41420546]
[1693840843702,6.15433,1624.9,1624.7,8.05991578]
[1693840844007,6.15433,1624.9,1624.8,0.80599158]
[1693840844423,12.30809,1625.0,1624.8,0.80599158]
[1693840845154,12.30809,1625.0,1624.8,3.87300584]
[1693840847824,18.46218,1625.0,1624.8,0.80599158]
[1693840848021,18.46218,1625.0,1624.8,0.64571032]
[1693840848248,18.46218,1625.0,1624.7,1.61197296]
[1693840848650,18.46218,1625.0,1624.7,7.76688296]
[1693840848953,18.46218,1625.0,1624.8,0.64571032]
[1693840849156,20.50068545,1625.0,1624.7,1.61197296]
[1693840849319,20.50068545,1625.0,1624.7,0.64571032]
[1693840849755,0.93680626,1624.9,1624.7,1.61197296]
[1693840849958,6.1546,1624.8,1624.7,1.61197296]
[1693840850121,6.1546,1624.8,1624.7,2.78984153]
[1693840850328,6.1546,1624.8,1624.7,2.78850985]
[1693840850685,6.1546,1624.8,1624.7,2.14413121]
[1693840850858,0.93680626,1624.9,1624.7,9.5862839]
[1693840851158,0.93680626,1624.9,1624.8,7.76549534]
[1693840851322,0.93680626,1624.9,1624.8,10.019545]
[1693840851522,0.93680626,1624.9,1624.8,3.864945]
[1693840852068,0.93680626,1624.9,1624.8,3.22060028]
[1693840852775,6.15393,1625.0,1624.8,0.96655062]
[1693840853076,6.15393,1625.0,1624.9,0.64429992]
[1693840853870,12.3079,1625.0,1624.9,0.64429992]
[1693840855838,18.46187,1625.0,1624.9,0.64429992]
[1693840856045,19.88587,1625.0,1624.9,0.64429992]
[1693840856757,7.57784,1625.0,1624.9,0.64429992]
[1693840857090,19.88552,1625.0,1624.9,0.64429992]
[1693840857973,19.88552,1625.0,1624.9,1.61085054]
[1693840859997,19.88552,1625.0,1624.9,0.96655062]
[1693840860553,19.88552,1625.0,1624.9,1.61046973]
[1693840860801,19.88552,1625.0,1624.9,0.64391911]
[1693840861806,19.88552,1625.0,1624.9,1.61046973]
[1693840862048,19.88552,1625.0,1624.9,0.96655062]
[1693840862049,6.15384,1625.0,1624.9,0.96655062]
[1693840862691,6.15384,1625.0,1624.9,2.25372331]
[1693840864738,7.09885787,1625.0,1624.9,2.25372331]
[1693840866230,0.94501787,1625.0,1624.9,13.09221227]
[1693840866395,0.94501787,1625.0,1624.9,19.24643227]
[1693840866723,0.94501787,1625.0,1624.9,23.14692896]
[1693840866928,0.101,1625.2,1625.0,0.76560238]
[1693840867104,0.101,1625.2,1625.1,4.67653342]
[1693840867420,0.101,1625.2,1625.1,5.220747]
[1693840868679,13.29348064,1625.2,1625.1,2.89724663]
[1693840869995,13.29348064,1625.2,1625.1,1.60951916]
[1693840870410,0.98732064,1625.2,1625.1,1.60951916]
[1693840870607,7.14040064,1625.2,1625.1,1.60951916]
[1693840870917,13.29348064,1625.2,1625.1,1.60951916]
[1693840871323,19.44656064,1625.2,1625.1,1.60951916]
[1693840872204,13.29348064,1625.2,1625.1,1.60951916]
[1693840872523,13.29348064,1625.2,1625.1,2.11900131]
[1693840874747,13.29348064,1625.2,1625.1,0.50948215]
[1693840875103,13.29348064,1625.2,1625.1,2.11866858]
[1693840875410,13.29348064,1625.2,1625.1,0.50948215]
[1693840875613,13.29348064,1625.2,1625.0,11.57111076]
[1693840875988,19.44656064,1625.2,1625.1,2.89674063]
[1693840876191,14.71748064,1625.2,1625.1,1.28747439]
[1693840876885,20.87056064,1625.2,1625.1,1.28747439]
[1693840877226,14.71748064,1625.2,1625.1,1.28747439]
[1693840877583,20.87056064,1625.2,1625.1,1.28747439]
[1693840878597,27.07763775,1625.2,1625.1,1.28747439]
[1693840878782,27.07763775,1625.2,1625.1,0.96594916]
[1693840878783,27.69217911,1625.2,1625.1,0.96594916]
[1693840878982,27.69217911,1625.2,1625.1,1.61004339]
[1693840878983,30.69217911,1625.2,1625.1,1.61004339]
[1693840879414,30.69217911,1625.2,1625.1,0.64409423]
[1693840882298,31.61508565,1625.2,1625.1,0.64409423]
[1693840883224,31.61508565,1625.2,1624.9,2.25342355]
[1693840883225,1.424,1625.0,1624.9,2.25342355]
[1693840883435,32.24647302,1625.0,1624.9,0.96594916]
[1693840883739,36.74720947,1625.0,1624.8,0.96594916]
[1693840883943,25.28427847,1624.9,1624.8,0.96594916]
[1693840884144,28.28427847,1624.9,1624.8,0.96594916]
[1693840886397,30.74704347,1624.9,1624.8,0.96594916]
[1693840886647,31.55653802,1624.9,1624.8,2.25342355]
[1693840886942,21.51555302,1624.9,1624.8,1.28747439]
[1693840887163,21.51555302,1624.9,1624.8,1.61027418]
[1693840887164,15.30844,1624.9,1624.8,1.61027418]
[1693840887646,1.80925112,1625.0,1624.8,3.67863458]
[1693840887813,0.886231,1625.0,1624.9,4.67897695]
[1693840888543,7.040101,1625.0,1624.9,4.67897695]
[1693840889098,13.193971,1625.0,1624.9,1.61196269]
[1693840889513,13.193971,1625.0,1624.9,2.90175098]
[1693840890004,13.193971,1625.0,1624.9,1.28978829]
[1693840891844,13.193971,1625.0,1624.9,0.96743397]
[1693840891845,20.771841,1625.0,1624.9,0.96743397]
[1693840892026,26.97958675,1625.0,1624.8,2.25722226]
[1693840892252,19.88666,1624.9,1624.8,2.25722226]
[1693840892614,19.88666,1624.9,1624.8,0.96743397]
[1693840894350,18.46266,1624.9,1624.8,2.25722226]
[1693840894720,18.46266,1624.9,1624.8,0.96743397]
[1693840894921,19.34885833,1624.9,1624.8,0.96743397]
[1693840896270,19.34885833,1624.9,1624.8,1.61234965]
[1693840896760,20.77285833,1624.9,1624.8,0.64491568]
[1693840896962,20.77285833,1624.9,1624.7,4.18594965]
[1693840897680,20.77285833,1624.9,1624.7,3.21851568]
[1693840898535,19.96336378,1624.9,1624.6,0.64491568]
[1693840898860,19.88894,1624.7,1624.6,0.64491568]
[1693840899034,19.88894,1624.7,1624.5,4.37274965]
[1693840900022,19.88894,1624.7,1624.5,3.40531568]
[1693840900224,1.424,1624.6,1624.5,0.64491568]
[1693840900446,19.89008,1624.6,1624.4,0.64491568]
[1693840900772,25.23594545,1624.6,1624.4,0.64491568]
[1693840900940,25.23594545,1624.6,1624.3,1.61234965]
[1693840901139,1.424,1624.4,1624.3,1.61234965]
[1693840901339,19.89233,1624.4,1624.3,1.61234965]
[1693840901865,19.89233,1624.4,1624.3,1.61203376]
[1693840902419,1.424,1624.4,1624.3,0.96743397]
[1693840902623,7.58011,1624.4,1624.3,2.25722226]
[1693840902878,6.15611,1624.4,1624.3,1.28978829]
[1693840903225,12.31222,1624.4,1624.3,1.28978829]
[1693840903827,19.89233,1624.4,1624.3,0.96655791]
[1693840904138,26.66294545,1624.4,1624.2,0.64436761]
[1693840904338,3.0,1624.3,1624.2,0.64436761]
[1693840904545,21.46947,1624.3,1624.2,0.64436761]
[1693840904728,21.46947,1624.3,1624.1,1.61092552]
[1693840904941,21.46947,1624.3,1624.2,0.64436761]
[1693840905144,22.89347,1624.3,1624.2,0.64436761]
[1693840905742,22.89347,1624.3,1624.2,1.61092552]
[1693840906052,22.89347,1624.3,1624.2,0.96655791]
[1693840906875,22.89347,1624.3,1624.2,2.2563462]
[1693840907858,22.89347,1624.3,1624.2,1.28978829]
[1693840908950,22.89347,1624.3,1624.2,2.90175098]
[1693840910086,23.77793409,1624.3,1624.2,2.90175098]
[1693840910402,17.62144409,1624.3,1624.2,2.90175098]
[1693840910699,15.90990457,1624.3,1624.2,1.61196269]
[1693840910840,14.62144409,1624.3,1624.1,1.93232901]
[1693840911189,14.62144409,1624.3,1624.1,2.40047191]
[1693840911484,14.62144409,1624.3,1624.2,1.60803041]
[1693840911786,14.62144409,1624.3,1624.1,2.40047191]
[1693840911787,20.77793409,1624.3,1624.1,2.40047191]
[1693840912288,13.19744409,1624.3,1624.1,2.40047191]
[1693840913008,13.19744409,1624.3,1624.2,1.93232901]
[1693840913361,19.35393409,1624.3,1624.2,1.93232901]
[1693840913601,20.77793409,1624.3,1624.1,2.40047191]
[1693840913906,1.424,1624.2,1624.1,1.93232901]
[1693840914121,17.61249716,1624.2,1624.1,1.93232901]
[1693840914718,17.61249716,1624.2,1624.0,4.68142901]
[1693840914760,17.61249716,1624.2,1624.1,1.93232901]
[1693840917083,19.03649716,1624.2,1624.1,1.93232901]
[1693840917921,19.03649716,1624.2,1624.0,2.25438385]
[1693840918727,12.87962716,1624.2,1624.0,2.25438385]
[1693840919025,12.87962716,1624.2,1624.0,2.74612133]
[1693840919183,19.03649716,1624.2,1624.0,2.74612133]
[1693840919708,19.03649716,1624.2,1624.1,2.25438385]
[1693840920029,11.45562716,1624.2,1624.1,2.25438385]
[1693840920239,19.03649716,1624.2,1624.1,2.25438385]
[1693840923808,19.89461,1624.2,1624.0,2.66299092]
[1693840924703,19.89461,1624.2,1624.1,2.25227553]
[1693840924903,19.89461,1624.2,1624.0,2.66299092]
[1693840925101,19.89461,1624.2,1624.0,3.08114001]
[1693840925344,19.89461,1624.2,1624.1,2.25253806]
[1693840925548,18.18299967,1624.2,1624.0,2.66299092]
[1693840925724,19.89461,1624.2,1624.0,2.66299092]
[1693840928739,19.89803,1623.9,1623.8,4.78848911]
[1693840929737,19.89803,1623.9,1623.8,2.5357]
[1693840930109,13.045721,1624.0,1623.8,2.5357]
[1693840930358,12.31563,1624.0,1623.9,2.25208364]
[1693840931257,19.89763,1624.0,1623.9,2.25208364]
[1693840931419,19.89763,1624.0,1623.8,4.78778364]
[1693840931757,19.89803,1623.9,1623.8,4.78743902]
[1693840931926,17.04482986,1623.9,1623.8,4.78743902]
[1693840933324,18.46882986,1623.9,1623.8,4.78743902]
[1693840933655,18.46882986,1623.9,1623.8,2.25173902]
[1693840933810,18.46882986,1623.9,1623.7,2.25173902]
[1693840934013,17.65933531,1623.9,1623.8,1.93031382]
[1693840934211,22.08333531,1623.9,1623.8,1.93031382]
[1693840935926,22.08333531,1623.9,1623.7,1.93031382]
[1693840936133,3.0,1623.8,1623.6,2.25173902]
[1693840936331,18.47631,1623.7,1623.6,2.25173902]
[1693840937966,19.90031,1623.7,1623.6,2.25173902]
[1693840938168,19.90031,1623.7,1623.4,5.41599092]
[1693840938169,22.364844,1623.7,1623.5,2.25173902]
[1693840938360,22.364844,1623.7,1623.6,1.93110823]
[1693840938554,22.364844,1623.7,1623.5,2.25173902]
[1693840938756,22.364844,1623.7,1623.6,1.93110807]
[1693840939271,22.23158,1623.7,1623.6,1.93110807]
[1693840939654,26.72892074,1623.7,1623.6,1.93110807]
[1693840939858,27.20892074,1623.7,1623.6,1.93110807]
[1693840940791,27.34218474,1623.7,1623.6,1.93110807]
[1693840942454,27.34218474,1623.7,1623.5,2.25173902]
[1693840943670,27.34218474,1623.7,1623.6,2.25173902]
[1693840944687,26.72767929,1623.7,1623.6,2.25173902]
[1693840945450,26.72767929,1623.7,1623.5,2.25173902]
[1693840945650,26.72767929,1623.7,1623.6,2.25173902]
[1693840947489,29.79469355,1623.7,1623.6,2.25173902]
[1693840947687,29.79469355,1623.7,1623.5,2.25173902]
[1693840948377,29.79469355,1623.7,1623.6,2.25173902]
[1693840948701,29.79469355,1623.7,1623.5,2.25173902]
[1693840948991,24.82367929,1623.7,1623.6,2.25173902]
[1693840949191,26.24767929,1623.7,1623.6,2.25173902]
[1693840950211,26.75006472,1623.7,1623.6,2.25173902]
[1693840950708,26.75006472,1623.7,1623.6,2.73708292]
[1693840950912,24.28553072,1623.7,1623.6,2.73708292]
[1693840951389,24.28553072,1623.7,1623.6,2.25173902]
[1693840952932,24.28553072,1623.7,1623.5,4.85343902]
[1693840955802,24.28553072,1623.7,1623.6,1.93131809]
[1693840957200,24.28553072,1623.7,1623.5,4.53301809]
[1693840957431,22.86153072,1623.7,1623.6,1.60962853]
[1693840957630,25.77494717,1623.7,1623.6,1.60962853]
[1693840958129,26.38945262,1623.7,1623.6,1.60962853]
[1693840959235,26.38945262,1623.7,1623.6,2.89748362]
[1693840959795,26.38945262,1623.7,1623.6,1.28785509]
[1693840960009,26.38945262,1623.7,1623.6,0.36403911]
[1693840960633,19.65173232,1623.6,1623.5,1.60962853]
[1693840960793,23.13173232,1623.6,1623.5,1.60962853]
[1693840960994,24.01462142,1623.6,1623.5,1.60962853]
[1693840961534,27.08163568,1623.6,1623.5,1.60962853]
[1693840961744,28.50563568,1623.6,1623.5,1.60962853]
[1693840963410,25.43862142,1623.6,1623.5,1.60962853]
[1693840963950,25.43862142,1623.6,1623.5,1.61026977]
[1693840965032,28.50563568,1623.6,1623.5,0.96638722]
[1693840965216,31.50563568,1623.6,1623.4,1.62186977]
[1693840965421,6.328,1623.5,1623.4,1.62186977]
[1693840965649,25.42109545,1623.5,1623.4,1.62186977]
[1693840966117,25.42109545,1623.5,1623.4,0.0116]
[1693840966314,28.48810971,1623.5,1623.4,0.0116]
[1693840966514,28.48810971,1623.5,1623.3,1.61026977]
[1693840966756,2.03850545,1623.4,1623.3,1.61026977]
[1693840966974,20.51823545,1623.4,1623.3,1.61026977]
[1693840967120,24.44216523,1623.4,1623.3,1.61026977]
[1693840967456,27.50917949,1623.4,1623.3,1.61026977]
[1693840967677,27.98917949,1623.4,1623.3,1.61026977]
[1693840968482,30.45444849,1623.4,1623.3,1.61026977]
[1693840968651,30.45444849,1623.4,1623.2,1.93232372]
[1693840968856,3.0,1623.3,1623.2,1.93232372]
[1693840969053,22.90487,1623.3,1623.2,1.93232372]
[1693840969564,22.90487,1623.3,1623.1,2.25437767]
[1693840969879,6.16067,1623.2,1623.1,2.73424544]
[1693840970050,6.16067,1623.2,1623.1,0.47986777]
[1693840970408,6.16067,1623.2,1623.1,2.73531613]
[1693840970543,10.60890413,1623.2,1623.1,0.47986777]
[1693840970742,12.32134,1623.2,1623.1,0.47986777]
[1693840971238,12.32134,1623.2,1623.1,2.73585634]
[1693840971437,12.32134,1623.2,1623.1,0.47986777]
[1693840971853,18.48201,1623.2,1623.1,0.47986777]
[1693840972077,18.48201,1623.2,1623.1,2.25668209]
[1693840972381,21.48201,1623.2,1623.1,1.93447672]
[1693840972542,22.90601,1623.2,1623.0,4.80098209]
[1693840972945,1.424,1623.1,1623.0,4.80098209]
[1693840973161,19.90712,1623.1,1623.0,4.80098209]
[1693840974082,19.90712,1623.1,1623.0,2.5443]
[1693840974586,19.90712,1623.1,1623.0,4.80098209]
[1693840974877,19.90712,1623.1,1623.0,2.5443]
[1693840975453,19.90712,1623.1,1623.0,4.80098209]
[1693840979584,6.16104,1623.1,1623.0,2.5443]
[1693840979888,6.16104,1623.1,1623.0,6.34418099]
[1693840982052,7.04277699,1623.3,1623.0,6.34418099]
[1693840982258,7.04277699,1623.3,1623.2,2.2579782]
[1693840982492,0.88226699,1623.3,1623.2,2.2579782]
[1693840982863,12.32015,1623.4,1623.2,2.2579782]
[1693840983065,6.15962,1623.5,1623.3,1.93556352]
[1693840983263,8.50708652,1623.6,1623.4,1.93556352]
[1693840983510,7.08308652,1623.6,1623.5,1.61293258]
[1693840983818,16.24246652,1623.6,1623.5,1.61293258]
[1693840983961,16.24246652,1623.6,1623.4,2.74514887]
[1693840983962,7.08308652,1623.6,1623.4,2.74514887]
[1693840984310,15.28502843,1623.7,1623.5,1.93556352]
[1693840984463,12.31764,1623.7,1623.6,1.61301031]
[1693840984659,6.15877,1623.7,1623.6,1.61301031]
[1693840984877,7.13574009,1623.7,1623.6,1.96786769]
[1693840985507,13.29451009,1623.7,1623.6,3.25822419]
[1693840986211,0.97697009,1623.7,1623.6,1.96786769]
[1693840986740,7.13574009,1623.7,1623.6,1.64514995]
[1693840987026,0.97697009,1623.7,1623.6,1.64514995]
[1693840987391,0.97697009,1623.7,1623.6,3.25816026]
[1693840987730,0.97697009,1623.7,1623.6,1.96786769]
[1693840988098,0.97697009,1623.7,1623.6,6.51400738]
[1693840988629,0.97697009,1623.7,1623.6,8.12638586]
[1693840989237,0.97697009,1623.7,1623.6,6.51400738]
[1693840989597,0.97697009,1623.7,1623.6,9.58102164]
[1693840989932,6.63933596,1623.9,1623.6,17.67573516]
[1693840990176,6.63933596,1623.9,1623.8,1.28958855]
[1693840990444,6.63933596,1623.9,1623.8,2.90157424]
[1693840990595,6.63933596,1623.9,1623.8,1.28958855]
[1693840990925,6.63933596,1623.9,1623.8,2.25676434]
[1693840991998,0.48120596,1623.9,1623.8,2.25676434]
[1693840992198,6.15777,1624.0,1623.8,4.0810716]
[1693840992510,6.15777,1624.0,1623.9,0.96690583]
[1693840993693,0.92347473,1624.2,1624.0,6.481]
[1693840994022,12.3112,1624.6,1624.1,23.15074995]
[1693840994334,6.15554,1624.6,1624.3,0.64421127]
[1693840994635,6.15554,1624.6,1624.4,0.64421127]
[1693840996650,6.15554,1624.6,1624.5,0.64421127]
[1693840997631,12.80752821,1624.8,1624.5,0.96631691]
[1693840997846,12.30958,1624.8,1624.6,0.64248721]
[1693840998544,6.15472,1624.8,1624.6,0.64248721]
[1693840998752,12.30948,1624.8,1624.6,0.64248721]
[1693840999316,11.50143692,1624.9,1624.6,13.91948412]
[1693840999317,3.92307692,1624.9,1624.6,13.91948412]
[1693840999651,13.23151692,1624.9,1624.7,2.03443562]
[1693840999859,12.30844,1624.9,1624.7,2.03443562]
[1693841000163,0.94336554,1624.8,1624.7,2.03443562]
[1693841000340,7.09796554,1624.8,1624.7,2.03443562]
[1693841000649,12.48475137,1624.8,1624.7,2.03337617]
[1693841000850,12.48475137,1624.8,1624.7,0.64142776]
[1693841000851,18.63935137,1624.8,1624.7,0.64142776]
[1693841001042,20.67785682,1624.8,1624.7,0.64142776]
[1693841001471,14.52325682,1624.8,1624.7,0.64142776]
[1693841002216,20.67785682,1624.8,1624.7,0.64142776]
[1693841002413,14.52325682,1624.8,1624.7,0.64142776]
[1693841004074,20.67785682,1624.8,1624.7,0.64142776]
[1693841004215,20.67785682,1624.8,1624.6,1.60774467]
[1693841004421,2.03850545,1624.7,1624.6,0.64142776]
[1693841004760,20.50344545,1624.7,1624.6,0.64142776]
[1693841006523,13.73396,1624.7,1624.6,0.64142776]
[1693841006764,12.30996,1624.7,1624.6,0.64142776]
[1693841007064,6.15498,1624.7,1624.6,0.96631691]
[1693841007969,0.94336554,1624.8,1624.7,2.28159447]
[1693841008166,0.94336554,1624.8,1624.7,2.92180008]
[1693841008464,8.50142692,1624.9,1624.7,9.07674008]
[1693841008667,7.07742692,1624.9,1624.7,10.04305699]
[1693841008869,6.15393,1625.0,1624.8,10.86612557]
[1693841009367,6.15393,1625.0,1624.8,11.83244248]
[1693841009725,6.15393,1625.0,1624.8,10.86612557]
[1693841010063,6.1536,1625.1,1624.9,0.64020561]
[1693841010287,12.30728,1625.1,1624.9,2.43890986]
[1693841011489,12.30728,1625.1,1624.9,1.79870425]
[1693841012279,12.30728,1625.1,1624.9,2.43890986]
[1693841012670,6.1536,1625.1,1624.9,2.43890986]
[1693841012893,6.1536,1625.1,1624.9,8.59309986]
[1693841013103,6.1536,1625.1,1625.0,0.85930999]
[1693841013318,12.40751,1625.2,1625.0,0.85930999]
[1693841013615,0.101,1625.2,1625.0,7.6533556]
[1693841013774,0.101,1625.2,1625.1,0.64020561]
[1693841013972,0.101,1625.2,1625.0,8.61967251]
[1693841014206,0.101,1625.2,1625.1,0.86196725]
[1693841014372,6.25408,1625.2,1625.1,0.86196725]
[1693841014576,7.16737181,1625.2,1625.1,0.86196725]
[1693841015521,20.89753181,1625.2,1625.0,0.64020561]
[1693841015677,20.79653181,1625.2,1624.9,0.64020561]
[1693841015873,20.79653181,1625.2,1624.9,3.70721987]
[1693841017986,21.36253181,1625.2,1624.9,3.70721987]
[1693841018189,21.36253181,1625.2,1624.9,5.05982955]
[1693841018628,21.36253181,1625.2,1624.9,1.99281529]
[1693841018776,21.36253181,1625.2,1624.9,0.64020561]
[1693841021603,1.99,1625.1,1624.9,0.64020561]
[1693841021809,18.46152,1625.0,1624.9,0.64020561]
[1693841022582,18.46152,1625.0,1624.9,1.60662036]
[1693841023284,18.46152,1625.0,1624.9,0.64030345]
[1693841023285,20.45152,1625.0,1624.9,0.64030345]
[1693841023497,20.45152,1625.0,1624.9,1.60662036]
[1693841024101,18.46152,1625.0,1624.9,1.60662036]
[1693841024399,18.46152,1625.0,1624.9,0.96631691]
[1693841024598,18.46152,1625.0,1624.9,2.25473946]
[1693841025126,18.46152,1625.0,1624.9,1.28842255]
[1693841025711,18.46152,1625.0,1624.9,2.88710233]
[1693841028340,18.46152,1625.0,1624.9,1.59867978]
[1693841029645,18.46152,1625.0,1624.9,1.60614943]
[1693841029646,20.45152,1625.0,1624.9,1.60614943]
[1693841029853,20.45152,1625.0,1624.9,1.28495804]
[1693841029854,26.96931553,1625.0,1624.9,1.28495804]
[1693841030017,33.17758796,1625.0,1624.9,0.96373672]
[1693841030843,35.64028896,1625.0,1624.9,0.96373672]
[1693841031450,35.64028896,1625.0,1624.9,1.28495804]
[1693841032018,35.64028896,1625.0,1624.9,2.2493617]
[1693841032454,35.64028896,1625.0,1624.9,1.28495804]
[1693841033317,42.27412896,1625.0,1624.9,1.28495804]
[1693841034005,42.27412896,1625.0,1624.9,0.36188112]
[1693841034202,40.28412896,1625.0,1624.9,0.36188112]
[1693841034403,39.80412896,1625.0,1624.9,1.60614943]
[1693841035135,39.80412896,1625.0,1624.9,0.68307251]
[1693841035530,0.24000441,1624.9,1624.8,1.91841574]
[1693841035730,26.18092362,1624.9,1624.8,1.91841574]
[1693841036132,26.18092362,1624.9,1624.7,4.87445169]
[1693841036336,20.45266,1624.9,1624.7,4.87445169]
[1693841036742,6.15422,1624.9,1624.7,11.02932169]
[1693841036954,8.14422,1624.9,1624.7,13.62767053]
[1693841037545,14.29844,1624.9,1624.8,2.23815169]
[1693841038154,14.24844,1624.9,1624.8,2.23815169]
[1693841039646,14.24844,1624.9,1624.7,7.47280053]
[1693841041452,14.24844,1624.9,1624.7,4.87445169]
[1693841041773,20.40266,1624.9,1624.8,1.93449716]
[1693841042545,20.40266,1624.9,1624.8,1.61228172]
[1693841043151,19.83466,1624.9,1624.8,1.61228172]
[1693841043652,19.83466,1624.9,1624.8,1.28992812]
[1693841044208,1.422,1624.9,1624.8,1.61228172]
[1693841044467,8.48935008,1625.0,1624.7,10.78514716]
[1693841044749,7.57606,1625.0,1624.9,1.61229335]
[1693841044954,7.55825056,1625.1,1624.9,1.61229335]
[1693841045249,13.71182056,1625.1,1625.0,1.28982406]
[1693841045452,16.71182056,1625.1,1625.0,0.96737531]
[1693841045755,22.86539056,1625.1,1625.0,0.96737531]
[1693841045952,21.94242723,1625.1,1625.0,0.96737531]
[1693841046330,23.36442723,1625.1,1625.0,0.96737531]
[1693841046520,23.36442723,1625.1,1625.0,0.64491084]
[1693841047131,22.88268,1625.1,1625.0,0.64491084]
[1693841048019,1.422,1625.0,1624.9,0.64491084]
[1693841048217,21.92002545,1625.0,1624.9,0.64491084]
[1693841048450,21.92002545,1625.0,1624.8,0.64491084]
[1693841048753,19.88466,1624.9,1624.8,0.64491084]
[1693841049455,23.49916545,1624.9,1624.6,1.61228615]
[1693841049764,1.422,1624.7,1624.6,1.61228615]
[1693841049966,19.88694,1624.7,1624.6,1.61228615]
[1693841050133,19.88694,1624.7,1624.6,0.64491084]
[1693841050540,19.88694,1624.7,1624.5,1.61228615]